fUST/lending_fUST_20250310
["ID","MTS","AMOUNT","RATE_DAILY","PERIOD"]
[355811490,1741607465822,-556.54,0.0005178,120]
[355811491,1741607465831,-500.0,0.0005178,120]
[355811492,1741607465840,-500.0,0.0005178,120]
[355811493,1741607465850,-1523.15,0.0005178,120]
[355811494,1741607465860,-1333.19,0.0005178,120]
[355811495,1741607465870,-2915.64,0.0005178,120]
[355811496,1741607465880,-500.0,0.0005178,120]
[355811497,1741607465890,-1628.94,0.0005178,120]
[355811498,1741607465900,-500.0,0.0005178,120]
[355811499,1741607465910,-500.0,0.0005178,120]
[355811500,1741607465920,-1000.0,0.0005178,7]
[355811501,1741607465930,-500.0,0.0005178,120]
[355811502,1741607465940,-860.61,0.0005178,120]
[355811503,1741607465950,-500.0,0.0005178,120]
[355811504,1741607465960,-500.0,0.0005178,120]
[355811505,1741607465970,-500.0,0.0005178,120]
[355811506,1741607465979,-500.0,0.0005178,120]
[355811507,1741607465990,-500.0,0.0005178,120]
[355811508,1741607465999,-500.0,0.0005178,120]
[355811509,1741607466010,-925.83,0.0005178,120]
[355811510,1741607466019,-862.83,0.0005178,120]
[355811511,1741607466029,-1198.11,0.0005178,120]
[355811512,1741607466039,-500.0,0.0005178,120]
[355811513,1741607466049,-500.0,0.0005178,120]
[355811514,1741607466059,-500.0,0.0005178,120]
[355811515,1741607466069,-502.76,0.0005178,120]
[355811516,1741607466079,-525.88,0.0005178,120]
[355811517,1741607466089,-500.0,0.0005178,120]
[355811518,1741607466099,-504.2,0.0005178,120]
[355811519,1741607466110,-500.0,0.0005178,120]
[355811520,1741607466119,-4063.93,0.0005178,120]
[355811521,1741607466129,-500.0,0.0005178,120]
[355811522,1741607466138,-782.59,0.0005178,120]
[355811523,1741607466147,-500.0,0.0005178,120]
[355811524,1741607466156,-500.0,0.0005178,120]
[355811525,1741607466166,-605.17,0.0005178,120]
[355811526,1741607466177,-500.0,0.0005178,120]
[355811527,1741607466186,-500.0,0.0005178,120]
[355811528,1741607466196,-1171.0,0.0005178,120]
[355811529,1741607466205,-526.94096112,0.0005178,120]
[355811530,1741607466215,-500.0,0.0005178,120]
[355811531,1741607466224,-500.0,0.0005178,120]
[355811532,1741607466234,-500.0,0.0005178,120]
[355811533,1741607466243,-232.81898875,0.0005178,120]
[355811534,1741607466254,-500.0,0.0005178,120]
[355811535,1741607466264,-500.0,0.0005178,120]
[355811536,1741607466274,-500.0,0.0005178,120]
[355811537,1741607466283,-500.0,0.0005178,120]
[355811538,1741607466292,-513.91,0.0005178,120]
[355811539,1741607466302,-500.0,0.0005178,120]
[355811540,1741607466312,-500.0,0.0005178,120]
[355811541,1741607466323,-1446.04,0.0005178,120]
[355811542,1741607466333,-500.0,0.0005178,120]
[355811543,1741607466343,-6602.5,0.0005178,120]
[355811544,1741607466352,-732.07,0.0005178,120]
[355811545,1741607466361,-500.0,0.0005178,120]
[355811546,1741607466371,-892.31,0.0005178,120]
[355811547,1741607466381,-500.0,0.0005178,120]
[355811548,1741607466391,-500.0,0.0005178,120]
[355811549,1741607466400,-500.0,0.0005178,120]
[355811550,1741607466409,-500.0,0.0005178,120]
[355811551,1741607466418,-500.0,0.0005178,120]
[355811552,1741607466428,-541.21,0.0005178,120]
[355811553,1741607466439,-500.0,0.0005178,120]
[355811554,1741607466448,-500.0,0.0005178,120]
[355811555,1741607466458,-4651.51,0.0005178,120]
[355811556,1741607466468,-2354.79,0.0005178,120]
[355811557,1741607466478,-500.0,0.0005178,120]
[355811558,1741607466488,-624.13,0.0005178,120]
[355811559,1741607466498,-500.0,0.0005178,120]
[355811560,1741607466511,-385.24290519,0.0005178,120]
[355811561,1741607466521,-500.0,0.0005178,120]
[355811562,1741607466532,-500.0,0.0005178,120]
[355811563,1741607466542,-500.0,0.0005178,120]
[355811564,1741607466553,-500.0,0.0005178,120]
[355811565,1741607466562,-500.0,0.0005178,120]
[355811566,1741607466574,-546.62,0.0005178,15]
[355811567,1741607466588,-13853.78,0.0005178,2]
[355811568,1741607466599,-588.91,0.0005178,120]
[355811569,1741607466608,-1249.42,0.0005178,120]
[355811570,1741607466625,-1898.59,0.0005178,120]
[355811571,1741607466641,-519.64839478,0.0005178,120]
[355811572,1741607466655,-1300.32,0.0005178,120]
[355811573,1741607466664,-898.69,0.0005178,120]
[355811574,1741607466674,-500.0,0.0005178,120]
[355811575,1741607466684,-500.0,0.0005178,2]
[355811576,1741607466694,-500.0,0.0005178,120]
[355811577,1741607466808,-500.0,0.0005178,30]
[355811578,1741607466821,-500.0,0.0005178,120]
[355811579,1741607466831,-2200.46,0.0005178,120]
[355811580,1741607466841,-500.0,0.0005178,120]
[355811581,1741607466850,-500.0,0.0005178,120]
[355811582,1741607466860,-500.0,0.0005178,2]
[355811583,1741607466870,-1450.8,0.0005178,120]
[355811584,1741607466880,-153.77,0.000518,51]
[355811585,1741607466890,-153.77,0.000518,51]
[355811586,1741607466900,-153.77,0.000518,51]
[355811587,1741607466910,-153.77,0.000518,51]
[355811588,1741607466920,-153.77,0.000518,51]
[355811589,1741607466930,-153.77,0.000518,51]
[355811590,1741607466939,-153.77,0.000518,51]
[355811591,1741607466950,-153.77,0.000518,51]
[355811592,1741607466959,-153.77,0.000518,51]
[355811593,1741607466969,-153.77,0.000518,51]
[355811594,1741607466978,-153.77,0.000518,51]
[355811595,1741607466988,-153.77,0.000518,51]
[355811596,1741607466998,-153.77,0.000518,51]
[355811597,1741607467009,-153.77,0.000518,51]
[355811598,1741607467019,-153.77,0.000518,51]
[355811599,1741607467029,-153.77,0.000518,51]
[355811600,1741607467038,-500.0,0.00051851,98]
[355811601,1741607467048,-376.382743,0.00051853,2]
[355811602,1741607467058,-156.34543567,0.00051863,120]
[355811603,1741607467068,-500.0,0.00051951,96]
[355811604,1741607467082,-350.0,0.00051968,2]
[355811605,1741607467091,-1000.0,0.00052,120]
[355811606,1741607467101,-20000.0,0.00052044,30]
[355811607,1741607467112,-500.0,0.00052051,94]
[355811608,1741607467123,-500.0,0.00052054,120]
[355811609,1741607467133,-500.0,0.00052054,120]
[355811610,1741607467144,-500.0,0.00052054,120]
[355811611,1741607467154,-500.0,0.00052054,120]
[355811612,1741607467163,-500.0,0.00052054,120]
[355811613,1741607467170,-500.0,0.00052054,120]
[355811614,1741607467178,-500.0,0.00052054,120]
[355811615,1741607467187,-760.28,0.00052054,7]
[355811616,1741607467198,-500.0,0.00052054,120]
[355811617,1741607467209,-500.0,0.00052054,120]
[355811618,1741607467219,-500.0,0.00052054,120]
[355811619,1741607467228,-500.0,0.00052054,15]
[355811620,1741607467236,-510.63232481,0.00052054,120]
[355811621,1741607467246,-500.0,0.00052054,120]
[355811622,1741607467256,-500.0,0.00052054,120]
[355811623,1741607467266,-500.0,0.00052054,120]
[355811624,1741607467275,-500.0,0.00052054,120]
[355811625,1741607467285,-500.0,0.00052054,120]
[355811626,1741607467295,-500.0,0.00052054,120]
[355811627,1741607467305,-500.0,0.00052054,120]
[355811628,1741607467315,-501.8361569,0.00052054,120]
[355811629,1741607467330,-500.0,0.00052054,120]
[355811630,1741607467339,-500.0,0.00052054,120]
[355811631,1741607467349,-500.0,0.00052054,5]
[355811632,1741607467359,-500.0,0.00052054,120]
[355811633,1741607467368,-1000.0,0.00052054,2]
[355811634,1741607467377,-1000.0,0.00052054,2]
[355811635,1741607467387,-1000.0,0.00052054,2]
[355811636,1741607467396,-1000.0,0.00052054,2]
[355811637,1741607467405,-500.0,0.00052054,120]
[355811638,1741607467414,-1000.0,0.00052054,2]
[355811639,1741607467423,-615.63624811,0.00052054,2]
[355811640,1741607467432,-500.0,0.00052054,120]
[355811641,1741607467441,-500.0,0.00052054,120]
[355811642,1741607467450,-500.0,0.00052054,120]
[355811643,1741607467459,-970.08,0.00052054,120]
[355811644,1741607467469,-500.0,0.00052054,120]
[355811645,1741607467478,-500.0,0.00052054,120]
[355811646,1741607467487,-500.0,0.00052054,120]
[355811647,1741607467496,-505.36314587,0.00052054,120]
[355811648,1741607467507,-500.0,0.00052054,120]
[355811649,1741607467518,-500.0,0.00052054,120]
[355811650,1741607467527,-526.25,0.00052054,120]
[355811651,1741607467536,-500.0,0.00052054,120]
[355811652,1741607467547,-500.0,0.00052054,120]
[355811653,1741607467557,-500.0,0.00052054,120]
[355811654,1741607467567,-500.0,0.00052054,120]
[355811655,1741607467578,-500.0,0.00052054,120]
[355811656,1741607467589,-500.0,0.00052054,120]
[355811657,1741607467599,-511.91,0.00052054,120]
[355811658,1741607467609,-500.0,0.00052054,120]
[355811659,1741607467618,-604.52,0.00052054,120]
[355811660,1741607467628,-391.40995306,0.00052054,120]
[355811661,1741607467638,-500.0,0.00052054,120]
[355811662,1741607467648,-500.0,0.00052054,120]
[355811663,1741607467659,-500.0,0.00052054,120]
[355811664,1741607467669,-500.0,0.00052054,120]
[355811665,1741607467679,-500.0,0.00052054,120]
[355811666,1741607467689,-500.0,0.00052054,120]
[355811667,1741607467698,-500.0,0.00052054,120]
[355811668,1741607467708,-500.0,0.00052054,120]
[355811669,1741607467717,-500.0,0.00052054,120]
[355811670,1741607467727,-500.0,0.00052054,120]
[355811671,1741607467737,-500.0,0.00052054,120]
[355811672,1741607467747,-500.0,0.00052054,120]
[355811673,1741607467758,-500.0,0.00052054,120]
[355811674,1741607467768,-500.0,0.00052054,120]
[355811675,1741607467778,-500.0,0.00052054,120]
[355811676,1741607467788,-500.0,0.00052054,120]
[355811677,1741607467797,-815.44,0.00052054,120]
[355811678,1741607467806,-500.0,0.00052054,120]
[355811679,1741607467816,-568.27,0.00052054,120]
[355811680,1741607467827,-500.0,0.00052054,120]
[355811681,1741607467837,-500.0,0.00052054,120]
[355811682,1741607467846,-865.23,0.00052054,120]
[355811683,1741607467856,-500.0,0.00052054,120]
[355811684,1741607467866,-1169.92,0.00052054,120]
[355811685,1741607467875,-500.0,0.00052054,120]
[355811686,1741607467885,-500.0,0.00052054,120]
[355811687,1741607467895,-884.21,0.00052054,120]
[355811688,1741607467904,-500.0,0.00052054,120]
[355811689,1741607467914,-500.0,0.00052054,120]
[355811690,1741607467924,-500.0,0.00052054,120]
[355811691,1741607467934,-524.92386506,0.00052054,120]
[355811692,1741607467944,-500.0,0.00052054,120]
[355811693,1741607467953,-607.55,0.00052054,120]
[355811694,1741607467963,-500.0,0.00052054,2]
[355811695,1741607467972,-635.6,0.00052054,120]
[355811696,1741607467982,-500.0,0.00052054,120]
[355811697,1741607467991,-500.0,0.00052054,120]
[355811698,1741607468001,-500.0,0.00052054,120]
[355811699,1741607468010,-150.0,0.00052054,30]
[355811700,1741607468020,-500.0,0.00052054,120]
[355811701,1741607468030,-500.0,0.00052054,120]
[355811702,1741607468039,-500.0,0.00052054,120]
[355811703,1741607468049,-500.0,0.00052054,120]
[355811704,1741607468058,-500.0,0.00052054,120]
[355811705,1741607468067,-500.0,0.00052054,120]
[355811706,1741607468079,-500.0,0.00052054,120]
[355811707,1741607468088,-500.0,0.00052054,120]
[355811708,1741607468097,-435.32585171,0.00052054,120]
[355811709,1741607468106,-500.0,0.00052054,120]
[355811710,1741607468116,-561.66604867,0.00052054,120]
[355811711,1741607468126,-1304.58,0.00052054,120]
[355811712,1741607468136,-500.0,0.00052054,120]
[355811713,1741607468145,-646.1,0.00052054,120]
[355811714,1741607468155,-500.0,0.00052054,120]
[355811715,1741607468164,-500.0,0.00052054,120]
[355811716,1741607468174,-500.0,0.00052054,120]
[355811717,1741607468184,-500.0,0.00052054,120]
[355811718,1741607468194,-500.0,0.00052054,120]
[355811719,1741607468205,-500.0,0.00052054,120]
[355811720,1741607468215,-500.0,0.00052054,120]
[355811721,1741607468225,-3058.13,0.00052054,120]
[355811722,1741607468235,-500.0,0.00052054,120]
[355811723,1741607468338,-500.0,0.00052054,120]
[355811724,1741607468347,-500.0,0.00052054,120]
[355811725,1741607468357,-500.0,0.00052054,120]
[355811726,1741607468367,-521.05,0.00052054,120]
[355811727,1741607468378,-500.0,0.00052054,120]
[355811728,1741607468387,-500.0,0.00052054,120]
[355811729,1741607468396,-500.0,0.00052054,120]
[355811730,1741607468406,-500.0,0.00052054,120]
[355811731,1741607468415,-692.66,0.00052054,120]
[355811732,1741607468425,-500.0,0.00052054,120]
[355811733,1741607468434,-500.0,0.00052054,120]
[355811734,1741607468444,-1550.78,0.00052054,120]
[355811735,1741607468454,-500.0,0.00052054,120]
[355811736,1741607468465,-500.0,0.00052054,120]
[355811737,1741607468475,-696.14,0.00052054,120]
[355811738,1741607468485,-500.0,0.00052054,120]
[355811739,1741607468496,-851.99,0.00052054,120]
[355811740,1741607468508,-828.93,0.00052054,2]
[355811741,1741607468518,-500.0,0.00052054,120]
[355811742,1741607468528,-500.0,0.00052054,120]
[355811743,1741607468538,-500.0,0.00052054,120]
[355811744,1741607468550,-500.0,0.00052054,120]
[355811745,1741607468559,-500.0,0.00052054,120]
[355811746,1741607468569,-480.49219621,0.00052054,120]
[355811747,1741607468585,-1472.77,0.00052054,120]
[355811748,1741607468594,-1577.16,0.00052054,120]
[355811749,1741607468604,-500.0,0.00052054,120]
[355811750,1741607468615,-500.0,0.00052054,120]
[355811751,1741607468625,-1586.54,0.00052054,120]
[355811752,1741607468635,-500.0,0.00052054,120]
[355811753,1741607468645,-688.31,0.00052054,120]
[355811754,1741607468655,-2572.37,0.00052054,120]
[355811755,1741607468665,-500.0,0.00052054,120]
[355811756,1741607468676,-500.0,0.00052054,120]
[355811757,1741607468685,-500.0,0.00052054,120]
[355811758,1741607468696,-500.82,0.00052054,120]
[355811759,1741607468705,-500.0,0.00052054,120]
[355811760,1741607468715,-500.0,0.00052054,120]
[355811761,1741607468727,-500.0,0.00052054,120]
[355811762,1741607468737,-500.0,0.00052054,120]
[355811763,1741607468746,-500.0,0.00052054,120]
[355811764,1741607468756,-500.0,0.00052054,120]
[355811765,1741607468766,-500.0,0.00052054,120]
[355811766,1741607468776,-500.0,0.00052054,120]
[355811767,1741607468786,-645.81,0.00052054,120]
[355811768,1741607468795,-992.65,0.00052054,120]
[355811769,1741607468804,-500.0,0.00052054,120]
[355811770,1741607468818,-51310.55,0.00052054,7]
[355811771,1741607468832,-500.0,0.00052054,120]
[355811772,1741607468841,-1066.71,0.00052054,120]
[355811773,1741607468850,-683.0,0.00052054,120]
[355811774,1741607468860,-1142.38,0.00052054,120]
[355811775,1741607468870,-500.0,0.00052054,120]
[355811776,1741607468880,-500.0,0.00052054,120]
[355811777,1741607468890,-1004.38,0.00052054,120]
[355811778,1741607468900,-500.0,0.00052054,120]
[355811779,1741607468909,-500.0,0.00052054,120]
[355811780,1741607468919,-500.0,0.00052054,120]
[355811781,1741607468929,-1039.43,0.00052054,120]
[355811782,1741607468938,-612.35,0.00052054,120]
[355811783,1741607468948,-500.0,0.00052054,120]
[355811784,1741607468958,-500.0,0.00052054,120]
[355811785,1741607468968,-3219.16,0.00052054,120]
[355811786,1741607468981,-3472.79,0.00052054,120]
[355811787,1741607468992,-4838.56,0.00052054,120]
[355811788,1741607469002,-500.0,0.00052054,120]
[355811789,1741607469012,-1935.38,0.00052054,60]
[355811790,1741607469024,-500.0,0.00052054,120]
[355811791,1741607469035,-741.28,0.00052054,120]
[355811792,1741607469046,-610.98,0.00052054,120]
[355811793,1741607469057,-500.0,0.00052054,120]
[355811794,1741607469068,-500.0,0.00052054,120]
[355811795,1741607469080,-500.0,0.00052054,120]
[355811796,1741607469090,-500.0,0.00052054,120]
[355811797,1741607469101,-1041.66,0.00052054,120]
[355811798,1741607469113,-558.2,0.00052054,120]
[355811799,1741607469122,-8237.64,0.00052054,120]
[355811800,1741607469132,-670.89,0.00052054,120]
[355811801,1741607469142,-500.0,0.00052054,120]
[355811802,1741607469151,-193.44122263,0.00052054,120]
[355811803,1741607469161,-556.54,0.00052054,120]
[355811804,1741607469170,-500.0,0.00052054,120]
[355811805,1741607469180,-500.0,0.00052054,120]
[355811806,1741607469191,-1523.15,0.00052054,120]
[355811807,1741607469203,-1333.19,0.00052054,120]
[355811808,1741607469213,-2915.64,0.00052054,120]
[355811809,1741607469222,-1628.94,0.00052054,120]
[355811810,1741607469232,-500.0,0.00052054,120]
[355811811,1741607469242,-500.0,0.00052054,120]
[355811812,1741607469251,-500.0,0.00052054,120]
[355811813,1741607469261,-1000.0,0.00052054,7]
[355811814,1741607469271,-540.84674822,0.00052054,120]
[355811815,1741607469281,-860.61,0.00052054,120]
[355811816,1741607469291,-500.0,0.00052054,120]
[355811817,1741607469300,-500.0,0.00052054,120]
[355811818,1741607469310,-500.0,0.00052054,120]
[355811819,1741607469319,-500.0,0.00052054,120]
[355811820,1741607469332,-500.0,0.00052054,120]
[355811821,1741607469342,-500.0,0.00052054,120]
[355811822,1741607469351,-925.83,0.00052054,120]
[355811823,1741607469362,-862.83,0.00052054,120]
[355811824,1741607469372,-1198.11,0.00052054,120]
[355811825,1741607469381,-500.0,0.00052054,120]
[355811826,1741607469391,-500.0,0.00052054,120]
[355811827,1741607469400,-500.0,0.00052054,120]
[355811828,1741607469410,-502.76,0.00052054,120]
[355811829,1741607469419,-525.88,0.00052054,120]
[355811830,1741607469428,-500.0,0.00052054,120]
[355811831,1741607469438,-504.2,0.00052054,120]
[355811832,1741607469449,-500.0,0.00052054,120]
[355811833,1741607469458,-4063.93,0.00052054,120]
[355811834,1741607469468,-500.0,0.00052054,120]
[355811835,1741607469477,-782.59,0.00052054,120]
[355811836,1741607469487,-500.0,0.00052054,120]
[355811837,1741607469497,-500.0,0.00052054,120]
[355811838,1741607469515,-605.17,0.00052054,120]
[355811839,1741607469524,-500.0,0.00052054,120]
[355811840,1741607469541,-500.0,0.00052054,120]
[355811841,1741607469552,-1171.0,0.00052054,120]
[355811842,1741607469562,-500.0,0.00052054,120]
[355811843,1741607469572,-500.0,0.00052054,120]
[355811844,1741607469587,-500.0,0.00052054,120]
[355811845,1741607469597,-500.0,0.00052054,120]
[355811846,1741607469607,-500.0,0.00052054,120]
[355811847,1741607469618,-500.0,0.00052054,120]
[355811848,1741607469628,-500.0,0.00052054,120]
[355811849,1741607469637,-500.0,0.00052054,120]
[355811850,1741607469647,-513.91,0.00052054,120]
[355811851,1741607469657,-500.0,0.00052054,120]
[355811852,1741607469667,-1446.04,0.00052054,120]
[355811853,1741607469678,-500.0,0.00052054,120]
[355811854,1741607469687,-6602.5,0.00052054,120]
[355811855,1741607469794,-732.07,0.00052054,120]
[355811856,1741607469805,-500.0,0.00052054,120]
[355811857,1741607469815,-892.31,0.00052054,120]
[355811858,1741607469826,-500.0,0.00052054,120]
[355811859,1741607469836,-500.0,0.00052054,120]
[355811860,1741607469846,-500.0,0.00052054,120]
[355811861,1741607469857,-500.0,0.00052054,120]
[355811862,1741607469866,-500.0,0.00052054,120]
[355811863,1741607469876,-541.21,0.00052054,120]
[355811864,1741607469886,-500.0,0.00052054,120]
[355811865,1741607469897,-500.0,0.00052054,120]
[355811866,1741607469907,-4651.51,0.00052054,120]
[355811867,1741607469917,-2354.79,0.00052054,120]
[355811868,1741607469928,-500.0,0.00052054,120]
[355811869,1741607469938,-624.13,0.00052054,120]
[355811870,1741607469947,-500.0,0.00052054,120]
[355811871,1741607469958,-500.0,0.00052054,120]
[355811872,1741607469968,-500.0,0.00052054,120]
[355811873,1741607469978,-500.0,0.00052054,120]
[355811874,1741607469988,-566.61021417,0.00052054,120]
[355811875,1741607469997,-500.0,0.00052054,120]
[355811876,1741607470007,-546.62,0.00052054,15]
[355811877,1741607470017,-13853.78,0.00052054,2]
[355811878,1741607470027,-588.91,0.00052054,120]
[355811879,1741607470037,-1249.42,0.00052054,120]
[355811880,1741607470047,-1898.59,0.00052054,120]
[355811881,1741607470056,-1300.32,0.00052054,120]
[355811882,1741607470067,-898.69,0.00052054,120]
[355811883,1741607470078,-500.0,0.00052054,120]
[355811884,1741607470088,-500.0,0.00052054,2]
[355811885,1741607470097,-500.0,0.00052054,120]
[355811886,1741607470107,-500.0,0.00052054,30]
[355811887,1741607470116,-500.0,0.00052054,120]
[355811888,1741607470127,-2200.46,0.00052054,120]
[355811889,1741607470138,-521.10454877,0.00052054,120]
[355811890,1741607470148,-500.0,0.00052054,120]
[355811891,1741607470158,-500.0,0.00052054,2]
[355811892,1741607470167,-1450.8,0.00052054,120]
[355811893,1741607470177,-156.34543567,0.00052137,120]
[355811894,1741607470187,-500.0,0.00052151,92]
[355811895,1741607470198,-150.0,0.000522,120]
[355811896,1741607470208,-1501.30890785,0.00052228,2]
[355811897,1741607470218,-500.0,0.00052251,96]
[355811898,1741607470228,-376.1,0.000523,30]
[355811899,1741607470237,-763.03,0.000523,30]
[355811900,1741607470247,-500.0,0.00052328,120]
[355811901,1741607470257,-500.0,0.00052328,120]
[355811902,1741607470267,-500.0,0.00052328,120]
[355811903,1741607470276,-500.0,0.00052328,120]
[355811904,1741607470287,-500.0,0.00052328,120]
[355811905,1741607470296,-500.0,0.00052328,120]
[355811906,1741607470305,-500.0,0.00052328,120]
[355811907,1741607470315,-760.28,0.00052328,7]
[355811908,1741607470325,-500.0,0.00052328,120]
[355811909,1741607470335,-500.0,0.00052328,120]
[355811910,1741607470344,-500.0,0.00052328,120]
[355811911,1741607470354,-500.0,0.00052328,15]
[355811912,1741607470365,-500.0,0.00052328,120]
[355811913,1741607470374,-500.0,0.00052328,120]
[355811914,1741607470384,-641.56825373,0.00052328,120]
[355811915,1741607470394,-500.0,0.00052328,120]
[355811916,1741607470404,-500.0,0.00052328,120]
[355811917,1741607470413,-500.0,0.00052328,120]
[355811918,1741607470429,-500.0,0.00052328,120]
[355811919,1741607470447,-500.0,0.00052328,120]
[355811920,1741607470465,-500.0,0.00052328,120]
[355811921,1741607470484,-500.0,0.00052328,5]
[355811922,1741607470506,-538.52255653,0.00052328,120]
[355811923,1741607470529,-500.0,0.00052328,120]
[355811924,1741607470547,-500.0,0.00052328,120]
[355811925,1741607470563,-500.0,0.00052328,120]
[355811926,1741607470581,-500.0,0.00052328,120]
[355811927,1741607470602,-970.08,0.00052328,120]
[355811928,1741607470623,-500.0,0.00052328,120]
[355811929,1741607470636,-500.0,0.00052328,120]
[355811930,1741607470656,-413.97471964,0.00052328,120]
[355811931,1741607470670,-500.0,0.00052328,120]
[355811932,1741607470687,-500.0,0.00052328,120]
[355811933,1741607470703,-500.0,0.00052328,120]
[355811934,1741607470721,-500.0,0.00052328,120]
[355811935,1741607470737,-526.25,0.00052328,120]
[355811936,1741607470754,-512.45370338,0.00052328,120]
[355811937,1741607470771,-500.0,0.00052328,120]
[355811938,1741607470787,-500.0,0.00052328,120]
[355811939,1741607470807,-500.0,0.00052328,120]
[355811940,1741607470833,-511.91,0.00052328,120]
[355811941,1741607470851,-500.0,0.00052328,120]
[355811942,1741607470868,-604.52,0.00052328,120]
[355811943,1741607470885,-500.0,0.00052328,120]
[355811944,1741607470900,-500.0,0.00052328,120]
[355811945,1741607470917,-500.0,0.00052328,120]
[355811946,1741607470935,-500.0,0.00052328,120]
[355811947,1741607470951,-500.0,0.00052328,120]
[355811948,1741607470967,-500.0,0.00052328,120]
[355811949,1741607470985,-500.0,0.00052328,120]
[355811950,1741607471001,-500.0,0.00052328,120]
[355811951,1741607471019,-500.0,0.00052328,120]
[355811952,1741607471033,-500.0,0.00052328,120]
[355811953,1741607471050,-500.0,0.00052328,120]
[355811954,1741607471067,-500.0,0.00052328,120]
[355811955,1741607471084,-500.0,0.00052328,120]
[355811956,1741607471099,-500.0,0.00052328,120]
[355811957,1741607471115,-500.0,0.00052328,120]
[355811958,1741607471131,-500.0,0.00052328,120]
[355811959,1741607471148,-815.44,0.00052328,120]
[355811960,1741607471164,-500.0,0.00052328,120]
[355811961,1741607471180,-568.27,0.00052328,120]
[355811962,1741607471195,-500.0,0.00052328,120]
[355811963,1741607471211,-500.0,0.00052328,120]
[355811964,1741607471228,-865.23,0.00052328,120]
[355811965,1741607471243,-500.0,0.00052328,120]
[355811966,1741607471259,-1169.92,0.00052328,120]
[355811967,1741607471275,-510.55211044,0.00052328,120]
[355811968,1741607471291,-500.0,0.00052328,120]
[355811969,1741607471306,-884.21,0.00052328,120]
[355811970,1741607471321,-500.0,0.00052328,120]
[355811971,1741607471338,-500.0,0.00052328,120]
[355811972,1741607471354,-500.0,0.00052328,120]
[355811973,1741607471369,-500.0,0.00052328,120]
[355811974,1741607471385,-607.55,0.00052328,120]
[355811975,1741607471401,-497.16,0.00052328,2]
[355811976,1741607471416,-635.6,0.00052328,120]
[355811977,1741607471434,-500.0,0.00052328,120]
[355811978,1741607471451,-500.0,0.00052328,120]
[355811979,1741607471625,-500.0,0.00052328,120]
[355811980,1741607471636,-500.0,0.00052328,120]
[355811981,1741607471647,-500.0,0.00052328,120]
[355811982,1741607471656,-500.0,0.00052328,120]
[355811983,1741607471666,-500.0,0.00052328,120]
[355811984,1741607471676,-500.0,0.00052328,120]
[355811985,1741607471685,-500.0,0.00052328,120]
[355811986,1741607471695,-500.0,0.00052328,120]
[355811987,1741607471704,-500.0,0.00052328,120]
[355811988,1741607471713,-500.0,0.00052328,120]
[355811989,1741607471723,-1304.58,0.00052328,120]